fUST/lending_fUST_20250709
["ID","MTS","AMOUNT","RATE_DAILY","PERIOD"]
[370457964,1752027044394,-460.0,0.0002,2]
[370457965,1752027044403,-417.35877617,0.0002,2]
[370457966,1752027044416,-407.51219643,0.0002,2]
[370457967,1752027044426,-355.66201522,0.0002,2]
[370457968,1752027044436,-460.0,0.0002,2]
[370457969,1752027044447,-460.0,0.0002,2]
[370457970,1752027044457,-460.0,0.0002,2]
[370457971,1752027044468,-460.0,0.0002,2]
[370457972,1752027044478,-460.0,0.0002,2]
[370457973,1752027044488,-460.0,0.0002,2]
[370457974,1752027044498,-610.66,0.0002,2]
[370457975,1752027044508,-460.0,0.0002,2]
[370457976,1752027044519,-533.1,0.0002,2]
[370457977,1752027044529,-460.0,0.0002,2]
[370457978,1752027044538,-471.40516269,0.0002,2]
[370457979,1752027044549,-460.0,0.0002,2]
[370457980,1752027044558,-460.0,0.0002,2]
[370457981,1752027044568,-460.0,0.0002,2]
[370457982,1752027044578,-470.80325457,0.0002,2]
[370457983,1752027044587,-469.89836284,0.0002,2]
[370457984,1752027044597,-460.0,0.0002,2]
[370457985,1752027044606,-408.40729688,0.0002,2]
[370457986,1752027044618,-460.0,0.0002,2]
[370457987,1752027044628,-460.0,0.0002,2]
[370457988,1752027044638,-460.0,0.0002,2]
[370457989,1752027044647,-460.0,0.0002,2]
[370457990,1752027044657,-473.73288199,0.0002,2]
[370457991,1752027044668,-470.02337387,0.0002,2]
[370457992,1752027044678,-460.0,0.0002,2]
[370457993,1752027044687,-460.0,0.0002,2]
[370457994,1752027044697,-588.63,0.0002,2]
[370457995,1752027044707,-460.0,0.0002,2]
[370457996,1752027044716,-469.57996515,0.0002,2]
[370457997,1752027044726,-460.0,0.0002,2]
[370457998,1752027044736,-928.07,0.0002,2]
[370457999,1752027044746,-475.25506201,0.0002,2]
[370458000,1752027044755,-460.0,0.0002,2]
[370458001,1752027044765,-460.0,0.0002,2]
[370458002,1752027044929,-460.0,0.0002,2]
[370458003,1752027044938,-567.30487617,0.0002,2]
[370458004,1752027044948,-608.32,0.0002,2]
[370458005,1752027044957,-460.0,0.0002,2]
[370458006,1752027044966,-245.33393681,0.0002,2]
[370458007,1752027044975,-460.0,0.0002,2]
[370458008,1752027044984,-1026.93,0.0002,2]
[370458009,1752027044993,-467.99936835,0.0002,2]
[370458010,1752027045002,-460.0,0.0002,2]
[370458011,1752027045012,-3187.96,0.0002,2]
[370458012,1752027045022,-460.0,0.0002,2]
[370458013,1752027045033,-460.0,0.0002,2]
[370458014,1752027045042,-933.65,0.0002,2]
[370458015,1752027045051,-913.63,0.0002,2]
[370458016,1752027045061,-469.08364884,0.0002,2]
[370458017,1752027045070,-558.65274081,0.0002,2]
[370458018,1752027045079,-460.0,0.0002,2]
[370458019,1752027045089,-460.0,0.0002,2]
[370458020,1752027045099,-2515.73,0.0002,2]
[370458021,1752027045109,-460.0,0.0002,2]
[370458022,1752027045118,-469.94389054,0.0002,2]
[370458023,1752027045127,-479.28,0.0002,2]
[370458024,1752027045137,-460.0,0.0002,2]
[370458025,1752027045146,-460.0,0.0002,2]
[370458026,1752027045155,-478.43271616,0.0002,2]
[370458027,1752027045167,-500.84,0.0002,2]
[370458028,1752027045177,-550.78,0.0002,2]
[370458029,1752027045186,-460.0,0.0002,2]
[370458030,1752027045195,-480.89,0.0002,2]
[370458031,1752027045204,-460.0,0.0002,2]
[370458032,1752027045215,-904.45,0.0002,2]
[370458033,1752027045224,-460.0,0.0002,2]
[370458034,1752027045234,-1488.92,0.0002,2]
[370458035,1752027045243,-469.57868457,0.0002,2]
[370458036,1752027045253,-467.95227676,0.0002,2]
[370458037,1752027045262,-460.0,0.0002,2]
[370458038,1752027045271,-552.52,0.0002,2]
[370458039,1752027045281,-460.0,0.0002,2]
[370458040,1752027045291,-460.0,0.0002,2]
[370458041,1752027045301,-460.0,0.0002,2]
[370458042,1752027045318,-460.0,0.0002,2]
[370458043,1752027045339,-505.63,0.0002,2]
[370458044,1752027045348,-460.0,0.0002,2]
[370458045,1752027045358,-460.0,0.0002,2]
[370458047,1752027045368,-1821.35,0.0002,2]
[370458048,1752027045377,-460.0,0.0002,2]
[370458049,1752027045387,-460.0,0.0002,2]
[370458050,1752027045397,-460.0,0.0002,2]
[370458051,1752027045406,-611.01,0.0002,2]
[370458052,1752027045415,-2479.21,0.0002,2]
[370458053,1752027045425,-460.0,0.0002,2]
[370458054,1752027045434,-327.71838445,0.0002,2]
[370458055,1752027045443,-996.01,0.0002,2]
[370458056,1752027045453,-759.89,0.0002,2]
[370458058,1752027045462,-2593.25,0.0002,2]
[370458059,1752027045471,-1785.89,0.0002,2]
[370458061,1752027045481,-464.80948341,0.0002,2]
[370458062,1752027045491,-986.8,0.0002,2]
[370458063,1752027045501,-511.96,0.0002,2]
[370458064,1752027045511,-460.0,0.0002,2]
[370458065,1752027045520,-471.48209091,0.0002,2]
[370458066,1752027045529,-460.0,0.0002,2]
[370458067,1752027045538,-460.0,0.0002,2]
[370458068,1752027045548,-469.18697463,0.0002,2]
[370458069,1752027045557,-612.5,0.0002,2]
[370458070,1752027045566,-460.0,0.0002,2]
[370458071,1752027045575,-468.77464405,0.0002,2]
[370458072,1752027045584,-460.0,0.0002,2]
[370458073,1752027045593,-470.24643165,0.0002,2]
[370458074,1752027045602,-973.52,0.0002,2]
[370458075,1752027045612,-460.0,0.0002,2]
[370458076,1752027045621,-460.0,0.0002,2]
[370458077,1752027045630,-460.0,0.0002,2]
[370458078,1752027045639,-460.0,0.0002,2]
[370458079,1752027045649,-1532.11,0.0002,2]
[370458080,1752027045659,-622.33,0.0002,2]
[370458081,1752027045668,-460.0,0.0002,2]
[370458082,1752027045678,-1251.8,0.0002,2]
[370458083,1752027045687,-246.46944018,0.0002,2]
[370458084,1752027045696,-460.0,0.0002,2]
[370458085,1752027045705,-624.24,0.0002,2]
[370458086,1752027045715,-460.0,0.0002,2]
[370458087,1752027045724,-460.0,0.0002,2]
[370458088,1752027045734,-460.0,0.0002,2]
[370458089,1752027045743,-460.0,0.0002,2]
[370458090,1752027045752,-966.93,0.0002,2]
[370458091,1752027045761,-540.0,0.0002,30]
[370458092,1752027045770,-460.0,0.0002,2]
[370458093,1752027045779,-815.50837465,0.00020021,2]
[370458094,1752027045788,-1001.72208135,0.00020021,2]
[370458095,1752027045798,-1000.0,0.00020021,2]
[370458096,1752027045807,-1004.72484411,0.00020021,2]
[370458097,1752027045816,-491.97369834,0.00020021,2]
[370458098,1752027045825,-1000.0,0.00020021,2]
[370458099,1752027045835,-1000.0,0.00020021,2]
[370458100,1752027045843,-1000.0,0.00020021,2]
[370458101,1752027045853,-12589.12013084,0.00020034,2]
[370458102,1752027045862,-214.14293035,0.00020034,2]
[370458103,1752027045871,-848.55005627,0.00020034,2]
[370458104,1752027045880,-230.53906051,0.00020034,2]
[370458105,1752027045889,-215.27775528,0.00020034,2]
[370458106,1752027045898,-160.0,0.00020034,2]
[370458107,1752027045907,-160.0,0.00020034,2]
[370458108,1752027045916,-160.0,0.00020034,2]
[370458109,1752027045926,-160.0,0.00020034,2]
[370458110,1752027045935,-837.99933892,0.00020034,2]
[370458111,1752027045944,-160.0,0.00020035,2]
[370458112,1752027045953,-477.657481,0.00020061,2]
[370458113,1752027045963,-151.0,0.000201,3]
[370458114,1752027045971,-741.76822593,0.00020105,2]
[370458115,1752027045980,-4648.81398356,0.00020107,2]
[370458116,1752027045989,-300.0,0.0002011,2]
[370458117,1752027045999,-477.657481,0.00020157,2]
[370458118,1752027046008,-536.065221,0.00020187,2]
[370458119,1752027046017,-477.657481,0.00020252,2]
[370458120,1752027046032,-460.0,0.00020273,2]
[370458121,1752027046041,-460.0,0.00020273,2]
[370458123,1752027046050,-460.0,0.00020273,2]
[370458124,1752027046060,-563.78977974,0.00020273,2]
[370458125,1752027046069,-460.0,0.00020273,2]
[370458126,1752027046078,-460.0,0.00020273,2]
[370458127,1752027046088,-460.0,0.00020273,2]
[370458128,1752027046097,-460.0,0.00020273,2]
[370458129,1752027046107,-460.0,0.00020273,2]
[370458130,1752027046116,-460.0,0.00020273,2]
[370458131,1752027046125,-460.0,0.00020273,2]
[370458132,1752027046135,-460.0,0.00020273,2]
[370458133,1752027046144,-460.0,0.00020273,2]
[370458134,1752027046154,-542.45053929,0.00020273,2]
[370458135,1752027046163,-530.61135614,0.00020273,2]
[370458136,1752027046172,-474.5353023,0.00020273,2]
[370458137,1752027046182,-554.79466765,0.00020273,2]
[370458139,1752027046192,-610.66,0.00020273,2]
[370458140,1752027046201,-460.0,0.00020273,2]
[370458141,1752027046210,-533.1,0.00020273,2]
[370458142,1752027046220,-470.21360895,0.00020273,2]
[370458143,1752027046229,-460.0,0.00020273,2]
[370458145,1752027046239,-460.0,0.00020273,2]
[370458146,1752027046249,-460.0,0.00020273,2]
[370458147,1752027046258,-460.0,0.00020273,2]
[370458148,1752027046267,-460.0,0.00020273,2]
[370458149,1752027046276,-460.0,0.00020273,2]
[370458150,1752027046286,-460.0,0.00020273,2]
[370458151,1752027046295,-460.0,0.00020273,2]
[370458152,1752027046305,-460.0,0.00020273,2]
[370458153,1752027046314,-460.0,0.00020273,2]
[370458154,1752027046323,-588.63,0.00020273,2]
[370458155,1752027046333,-460.0,0.00020273,2]
[370458156,1752027046342,-460.0,0.00020273,2]
[370458157,1752027046352,-928.07,0.00020273,2]
[370458158,1752027046362,-460.0,0.00020273,2]
[370458159,1752027046371,-460.0,0.00020273,2]
[370458160,1752027046381,-460.0,0.00020273,2]
[370458161,1752027046391,-608.32,0.00020273,2]
[370458162,1752027046400,-460.0,0.00020273,2]
[370458163,1752027046409,-460.0,0.00020273,2]
[370458164,1752027046419,-1026.93,0.00020273,2]
[370458165,1752027046428,-460.0,0.00020273,2]
[370458166,1752027046437,-3187.96,0.00020273,2]
[370458167,1752027046447,-460.0,0.00020273,2]
[370458168,1752027046456,-460.0,0.00020273,2]
[370458169,1752027046466,-933.65,0.00020273,2]
[370458170,1752027046477,-913.63,0.00020273,2]
[370458171,1752027046486,-460.0,0.00020273,2]
[370458172,1752027046495,-470.74232701,0.00020273,2]
[370458173,1752027046505,-2515.73,0.00020273,2]
[370458174,1752027046514,-460.0,0.00020273,2]
[370458175,1752027046523,-479.28,0.00020273,2]
[370458176,1752027046533,-460.0,0.00020273,2]
[370458177,1752027046542,-460.0,0.00020273,2]
[370458178,1752027046552,-550.78,0.00020273,2]
[370458179,1752027046561,-460.0,0.00020273,2]
[370458180,1752027046570,-480.89,0.00020273,2]
[370458181,1752027046579,-470.6693537,0.00020273,2]
[370458182,1752027046588,-904.45,0.00020273,2]
[370458183,1752027046597,-460.0,0.00020273,2]
[370458184,1752027046606,-1488.92,0.00020273,2]
[370458185,1752027046615,-470.1302288,0.00020273,2]
[370458186,1752027046624,-552.52,0.00020273,2]
[370458187,1752027046634,-469.31905196,0.00020273,2]
[370458188,1752027046643,-460.0,0.00020273,2]
[370458189,1752027046652,-460.0,0.00020273,2]
[370458190,1752027046663,-460.0,0.00020273,2]
[370458191,1752027046672,-505.63,0.00020273,2]
[370458192,1752027046681,-471.0825182,0.00020273,2]
[370458193,1752027046691,-513.41487301,0.00020273,2]
[370458194,1752027046700,-1821.35,0.00020273,2]
[370458195,1752027046710,-460.0,0.00020273,2]
[370458196,1752027046719,-460.0,0.00020273,2]
[370458197,1752027046729,-460.0,0.00020273,2]
[370458198,1752027046739,-611.01,0.00020273,2]
[370458199,1752027046749,-2479.21,0.00020273,2]
[370458200,1752027046759,-460.0,0.00020273,2]
[370458201,1752027046769,-996.01,0.00020273,2]
[370458202,1752027046778,-759.89,0.00020273,2]
[370458203,1752027046787,-2593.25,0.00020273,2]
[370458204,1752027046796,-1785.89,0.00020273,2]
[370458205,1752027046806,-986.8,0.00020273,2]
[370458206,1752027046815,-511.96,0.00020273,2]
[370458207,1752027046825,-460.0,0.00020273,2]
[370458208,1752027046834,-510.34579795,0.00020273,2]
[370458209,1752027046843,-460.0,0.00020273,2]
[370458210,1752027046853,-612.5,0.00020273,2]
[370458211,1752027046863,-460.0,0.00020273,2]
[370458212,1752027046874,-460.0,0.00020273,2]
[370458213,1752027046885,-973.52,0.00020273,2]
[370458214,1752027046894,-460.0,0.00020273,2]
[370458215,1752027046904,-460.0,0.00020273,2]
[370458216,1752027046913,-460.0,0.00020273,2]
[370458217,1752027046922,-460.0,0.00020273,2]
[370458218,1752027046933,-1532.11,0.00020273,2]
[370458219,1752027046944,-622.33,0.00020273,2]
[370458220,1752027046955,-460.0,0.00020273,2]
[370458221,1752027046965,-1251.8,0.00020273,2]
[370458222,1752027046973,-460.0,0.00020273,2]
[370458223,1752027046983,-624.24,0.00020273,2]
[370458224,1752027046992,-460.0,0.00020273,2]
[370458225,1752027047002,-460.0,0.00020273,2]
[370458226,1752027047120,-460.0,0.00020273,2]
[370458227,1752027047129,-460.0,0.00020273,2]
[370458228,1752027047138,-966.93,0.00020273,2]
[370458229,1752027047148,-460.0,0.00020273,2]
[370458230,1752027047156,-168.0,0.00020309,2]
[370458231,1752027047165,-4648.81398356,0.00020314,3]
[370458232,1752027047175,-2869.0,0.00020317,2]
[370458233,1752027047184,-168.0,0.00020348,2]
[370458234,1752027047193,-477.657481,0.00020348,2]
[370458235,1752027047203,-151.0,0.000204,3]
[370458236,1752027047213,-477.657481,0.00020443,2]
[370458237,1752027047222,-741.76822593,0.00020447,2]
[370458238,1752027047232,-168.0,0.00020479,2]
[370458239,1752027047241,-168.0,0.00020496,2]
[370458240,1752027047250,-385.0,0.00020509,2]
[370458241,1752027047259,-417.6386418,0.00020521,2]
[370458242,1752027047269,-428.6046964,0.00020521,2]
[370458243,1752027047278,-428.6046964,0.00020521,2]
[370458244,1752027047288,-1000.0,0.00020521,2]
[370458245,1752027047297,-1005.96527619,0.00020521,2]
[370458246,1752027047306,-160.0,0.00020521,3]
[370458247,1752027047315,-12589.12013084,0.00020521,3]
[370458248,1752027047325,-214.14293035,0.00020521,3]
[370458249,1752027047335,-4648.81398356,0.00020521,3]
[370458250,1752027047346,-848.55005627,0.00020521,3]
[370458251,1752027047356,-755.86,0.00020538,3]
[370458252,1752027047366,-881.82,0.00020538,3]
[370458253,1752027047376,-818.86,0.00020538,3]
[370458254,1752027047386,-409.44,0.00020538,3]
[370458255,1752027047396,-477.657481,0.00020539,2]
[370458256,1752027047406,-385.0,0.00020542,2]
[370458257,1752027047416,-207.4,0.00020542,2]
[370458258,1752027047426,-151.0,0.00020542,2]
[370458259,1752027047435,-500.0,0.00020542,2]
[370458260,1752027047444,-151.0,0.00020542,2]
[370458261,1752027047454,-690.642,0.00020542,2]
[370458262,1752027047464,-500.0,0.00020542,2]
[370458263,1752027047473,-151.0,0.00020542,2]
[370458264,1752027047482,-530.12308961,0.00020542,2]
[370458265,1752027047492,-151.0,0.00020542,2]
[370458266,1752027047502,-151.0,0.00020542,2]
[370458267,1752027047512,-219.97288028,0.00020542,2]
[370458268,1752027047522,-25000.0,0.00020542,2]
[370458269,1752027047531,-22827.66514179,0.00020542,2]
[370458270,1752027047541,-244.05898662,0.00020547,2]
[370458271,1752027047550,-460.0,0.00020547,2]
[370458272,1752027047559,-460.0,0.00020547,2]
[370458273,1752027047569,-460.0,0.00020547,2]
[370458274,1752027047578,-470.69813594,0.00020547,2]
[370458275,1752027047587,-460.0,0.00020547,2]
[370458276,1752027047596,-460.0,0.00020547,2]
[370458277,1752027047606,-460.0,0.00020547,2]
[370458278,1752027047615,-460.0,0.00020547,2]
[370458279,1752027047624,-250.82291399,0.00020547,2]
[370458280,1752027047634,-460.0,0.00020547,2]
[370458281,1752027047643,-460.0,0.00020547,2]
[370458282,1752027047653,-610.66,0.00020547,2]
[370458283,1752027047663,-460.0,0.00020547,2]
[370458284,1752027047672,-533.1,0.00020547,2]
[370458285,1752027047682,-460.0,0.00020547,2]
[370458286,1752027047691,-460.0,0.00020547,2]
[370458287,1752027047700,-460.0,0.00020547,2]
[370458288,1752027047710,-460.0,0.00020547,2]
[370458289,1752027047719,-460.0,0.00020547,2]
[370458290,1752027047729,-460.0,0.00020547,2]
[370458291,1752027047738,-460.0,0.00020547,2]
[370458292,1752027047747,-324.06205132,0.00020547,2]
[370458293,1752027047756,-460.0,0.00020547,2]
[370458294,1752027047766,-460.0,0.00020547,2]
[370458295,1752027047775,-588.63,0.00020547,2]
[370458296,1752027047785,-460.0,0.00020547,2]
[370458297,1752027047795,-585.81670603,0.00020547,2]
[370458298,1752027047804,-928.07,0.00020547,2]
[370458299,1752027047814,-460.0,0.00020547,2]
[370458300,1752027047824,-460.0,0.00020547,2]
[370458301,1752027047834,-460.0,0.00020547,2]
[370458302,1752027047844,-608.32,0.00020547,2]
[370458303,1752027047853,-460.0,0.00020547,2]
[370458304,1752027047862,-460.0,0.00020547,2]
[370458305,1752027047871,-1026.93,0.00020547,2]
[370458306,1752027047881,-460.0,0.00020547,2]
[370458307,1752027047890,-3187.96,0.00020547,2]
[370458308,1752027047899,-460.0,0.00020547,2]
[370458309,1752027047908,-460.0,0.00020547,2]
[370458310,1752027047917,-933.65,0.00020547,2]
[370458311,1752027047927,-913.63,0.00020547,2]
[370458312,1752027047937,-460.0,0.00020547,2]
[370458313,1752027047947,-2515.73,0.00020547,2]
[370458314,1752027047958,-473.07851239,0.00020547,2]
[370458315,1752027047968,-479.28,0.00020547,2]
[370458316,1752027047977,-470.27777783,0.00020547,2]
[370458317,1752027047986,-460.0,0.00020547,2]
[370458318,1752027047995,-550.78,0.00020547,2]
[370458319,1752027048004,-484.63188212,0.00020547,2]
[370458320,1752027048014,-480.89,0.00020547,2]
[370458321,1752027048026,-904.45,0.00020547,2]
[370458322,1752027048036,-473.43034304,0.00020547,2]
[370458323,1752027048045,-1488.92,0.00020547,2]
[370458324,1752027048054,-552.52,0.00020547,2]
[370458325,1752027048064,-460.0,0.00020547,2]
[370458326,1752027048074,-297.89662517,0.00020547,2]
[370458327,1752027048083,-460.0,0.00020547,2]
[370458328,1752027048093,-505.63,0.00020547,2]
[370458329,1752027048103,-1821.35,0.00020547,2]
[370458330,1752027048113,-460.0,0.00020547,2]
[370458331,1752027048122,-483.04706673,0.00020547,2]
[370458332,1752027048132,-460.0,0.00020547,2]
[370458333,1752027048142,-611.01,0.00020547,2]
[370458334,1752027048151,-2479.21,0.00020547,2]
[370458335,1752027048161,-460.0,0.00020547,2]
[370458336,1752027048171,-996.01,0.00020547,2]
[370458337,1752027048180,-759.89,0.00020547,2]
[370458338,1752027048191,-2593.25,0.00020547,2]
[370458339,1752027048200,-1785.89,0.00020547,2]
[370458340,1752027048210,-986.8,0.00020547,2]
[370458341,1752027048220,-511.96,0.00020547,2]
[370458342,1752027048229,-460.0,0.00020547,2]
[370458343,1752027048239,-612.5,0.00020547,2]
[370458344,1752027048248,-407.55006154,0.00020547,2]
[370458345,1752027048259,-460.0,0.00020547,2]
[370458346,1752027048268,-599.70417561,0.00020547,2]
[370458347,1752027048278,-973.52,0.00020547,2]
[370458348,1752027048287,-460.0,0.00020547,2]
[370458349,1752027048296,-460.0,0.00020547,2]
[370458350,1752027048306,-264.43,0.00020547,2]
[370458351,1752027048315,-1532.11,0.00020547,2]
[370458352,1752027048324,-622.33,0.00020547,2]
[370458353,1752027048334,-460.0,0.00020547,2]
[370458354,1752027048343,-1251.8,0.00020547,2]
[370458355,1752027048353,-460.0,0.00020547,2]
[370458356,1752027048363,-624.24,0.00020547,2]
[370458357,1752027048373,-460.0,0.00020547,2]
[370458358,1752027048382,-460.0,0.00020547,2]
[370458359,1752027048392,-460.0,0.00020547,2]
[370458360,1752027048402,-460.0,0.00020547,2]
[370458361,1752027048411,-966.93,0.00020547,2]
[370458362,1752027048420,-460.0,0.00020547,2]
[370458363,1752027048429,-1500.0,0.00020568,2]
[370458364,1752027048438,-1502.53433863,0.00020568,2]
[370458365,1752027048448,-501.49912669,0.00020568,2]
[370458366,1752027048458,-1500.0,0.00020568,2]
[370458367,1752027048468,-716.195754,0.00020597,2]
[370458368,1752027048478,-5803.94,0.000206,2]
[370458369,1752027048487,-151.0,0.000206,3]
[370458370,1752027048497,-477.657481,0.00020634,2]
[370458371,1752027048506,-407.0,0.00020649,2]
[370458372,1752027048515,-408.797,0.00020649,2]
[370458373,1752027048525,-742.6949969,0.00020652,2]
[370458374,1752027048534,-151.0,0.000207,4]
[370458375,1752027048544,-151.0,0.000207,3]
[370458376,1752027048554,-770.17471178,0.00020707,2]
[370458377,1752027048563,-4648.81398356,0.00020728,3]
[370458378,1752027048572,-477.657481,0.0002073,2]
[370458379,1752027048582,-798.67117612,0.00020762,2]
[370458380,1752027048592,-963.525,0.00020768,2]
[370458381,1752027048601,-420.0,0.00020792,2]
[370458382,1752027048610,-168.0,0.000208,2]
[370458383,1752027048620,-828.22200964,0.00020817,2]
[370458384,1752027048629,-232.04314632,0.00020821,2]
[370458385,1752027048639,-460.0,0.00020821,2]
[370458386,1752027048648,-460.0,0.00020821,2]
[370458387,1752027048657,-460.0,0.00020821,2]
[370458388,1752027048667,-460.0,0.00020821,2]
[370458389,1752027048676,-475.08973069,0.00020821,2]
[370458390,1752027048686,-460.0,0.00020821,2]
[370458391,1752027048695,-460.0,0.00020821,2]
[370458392,1752027048705,-460.0,0.00020821,2]
[370458393,1752027048714,-610.66,0.00020821,2]
[370458394,1752027048723,-460.0,0.00020821,2]
[370458395,1752027048732,-533.1,0.00020821,2]
[370458396,1752027048742,-460.0,0.00020821,2]
[370458397,1752027048752,-151.986636,0.00020821,2]
[370458398,1752027048761,-460.0,0.00020821,2]
[370458399,1752027048770,-460.0,0.00020821,2]
[370458400,1752027048780,-460.0,0.00020821,2]
[370458401,1752027048789,-471.29577535,0.00020821,2]
[370458402,1752027048799,-357.03367746,0.00020821,2]
[370458403,1752027048808,-460.0,0.00020821,2]
[370458404,1752027048818,-392.93016327,0.00020821,2]
[370458405,1752027048827,-460.0,0.00020821,2]
[370458406,1752027048837,-588.63,0.00020821,2]
[370458407,1752027048846,-151.0,0.00020821,2]
[370458408,1752027048855,-460.0,0.00020821,2]
[370458409,1752027048865,-152.563038,0.00020821,2]
[370458410,1752027048874,-928.07,0.00020821,2]
[370458411,1752027048884,-151.0,0.00020821,2]
[370458412,1752027048893,-442.18422474,0.00020821,2]
[370458413,1752027048903,-460.0,0.00020821,2]
[370458414,1752027048912,-151.0,0.00020821,2]
[370458415,1752027048922,-460.0,0.00020821,2]
[370458416,1752027048932,-608.32,0.00020821,2]
[370458417,1752027048942,-460.0,0.00020821,2]
[370458418,1752027048952,-1026.93,0.00020821,2]
[370458419,1752027048963,-460.0,0.00020821,2]
[370458420,1752027048973,-3187.96,0.00020821,2]
[370458421,1752027048982,-151.0,0.00020821,2]
[370458422,1752027048992,-460.0,0.00020821,2]
[370458423,1752027049001,-933.65,0.00020821,2]
[370458424,1752027049011,-460.0,0.00020821,2]
[370458425,1752027049021,-913.63,0.00020821,2]
[370458426,1752027049037,-460.0,0.00020821,2]
[370458427,1752027049156,-2515.73,0.00020821,2]
[370458428,1752027049166,-479.28,0.00020821,2]
[370458429,1752027049177,-151.0,0.00020821,2]
[370458430,1752027049186,-460.0,0.00020821,2]
[370458431,1752027049197,-550.78,0.00020821,2]
[370458432,1752027049207,-480.89,0.00020821,2]
[370458433,1752027049217,-904.45,0.00020821,2]
[370458434,1752027049227,-151.306496,0.00020821,2]
[370458435,1752027049236,-1488.92,0.00020821,2]
[370458436,1752027049246,-552.52,0.00020821,2]
[370458437,1752027049256,-460.0,0.00020821,2]
[370458438,1752027049266,-262.59232122,0.00020821,2]
[370458439,1752027049275,-505.63,0.00020821,2]
[370458440,1752027049285,-1821.35,0.00020821,2]
[370458441,1752027049294,-460.0,0.00020821,2]
[370458442,1752027049304,-460.0,0.00020821,2]
[370458443,1752027049314,-611.01,0.00020821,2]
[370458444,1752027049323,-2479.21,0.00020821,2]
[370458445,1752027049333,-460.0,0.00020821,2]
[370458446,1752027049342,-996.01,0.00020821,2]
[370458447,1752027049352,-759.89,0.00020821,2]
[370458448,1752027049361,-2593.25,0.00020821,2]
[370458449,1752027049371,-1785.89,0.00020821,2]
[370458450,1752027049381,-191.589992,0.00020821,2]
[370458451,1752027049391,-151.0,0.00020821,2]
[370458452,1752027049400,-151.0,0.00020821,2]
[370458453,1752027049409,-191.589992,0.00020821,2]
[370458454,1752027049419,-986.8,0.00020821,2]
[370458455,1752027049429,-511.96,0.00020821,2]
[370458456,1752027049439,-151.0,0.00020821,2]
[370458457,1752027049448,-460.0,0.00020821,2]
[370458458,1752027049457,-612.5,0.00020821,2]
[370458459,1752027049467,-166.755189,0.00020821,2]
[370458460,1752027049477,-460.0,0.00020821,2]
[370458461,1752027049487,-973.52,0.00020821,2]
[370458462,1752027049497,-578.38723441,0.00020821,2]
[370458463,1752027049507,-460.0,0.00020821,2]
[370458464,1752027049516,-1532.11,0.00020821,2]
[370458465,1752027049526,-622.33,0.00020821,2]
[370458466,1752027049535,-327.636252,0.00020821,2]
[370458467,1752027049545,-460.0,0.00020821,2]
[370458468,1752027049555,-327.636252,0.00020821,2]
[370458469,1752027049565,-1251.8,0.00020821,2]